fUSD/lending_fUSD_20250226
["ID","MTS","AMOUNT","RATE_DAILY","PERIOD"]
[354512727,1740545439117,-1597.65,0.00045413,120]
[354512728,1740545439127,-500.0,0.00045413,120]
[354512729,1740545439136,-561.48,0.00045413,120]
[354512730,1740545439146,-500.90222614,0.00045413,120]
[354512731,1740545439155,-500.0,0.00045413,120]
[354512732,1740545439164,-2032.11,0.00045413,120]
[354512733,1740545439174,-500.0,0.00045413,120]
[354512734,1740545439184,-500.0,0.00045413,120]
[354512735,1740545439193,-500.0,0.00045413,120]
[354512736,1740545439204,-507.42092033,0.00045413,120]
[354512737,1740545439213,-2501.68,0.00045413,120]
[354512738,1740545439223,-500.0,0.00045413,120]
[354512739,1740545439232,-1468.08,0.00045413,120]
[354512740,1740545439242,-500.0,0.00045413,120]
[354512741,1740545439252,-500.0,0.00045413,120]
[354512742,1740545439261,-500.0,0.00045413,120]
[354512743,1740545439271,-1156.14,0.00045413,120]
[354512744,1740545439281,-500.0,0.00045413,120]
[354512745,1740545439291,-500.0,0.00045413,120]
[354512746,1740545439300,-500.0,0.00045413,120]
[354512747,1740545439310,-500.0,0.00045413,120]
[354512748,1740545439319,-500.0,0.00045413,120]
[354512749,1740545439329,-1185.28,0.00045413,120]
[354512752,1740545439339,-500.0,0.00045413,120]
[354512755,1740545439348,-1781.57,0.00045413,120]
[354512757,1740545439357,-998.56,0.00045413,120]
[354512758,1740545439367,-472.65644773,0.00045413,120]
[354512759,1740545439376,-500.0,0.00045413,120]
[354512760,1740545439386,-500.0,0.00045413,120]
[354512761,1740545439395,-364.23142153,0.00045413,120]
[354512762,1740545439405,-317.17905609,0.00045413,120]
[354512763,1740545439415,-500.0,0.00045413,120]
[354512764,1740545439424,-500.0,0.00045413,120]
[354512765,1740545439434,-500.0,0.00045413,120]
[354512766,1740545439446,-2103.13,0.00045413,120]
[354512767,1740545439456,-500.75872788,0.00045413,120]
[354512768,1740545439464,-2005.72,0.00045413,120]
[354512769,1740545439474,-1520.23,0.00045413,120]
[354512770,1740545439483,-804.58,0.00045413,120]
[354512771,1740545439493,-1705.14,0.00045413,120]
[354512772,1740545439502,-500.0,0.00045413,120]
[354512773,1740545439511,-747.32,0.00045413,120]
[354512774,1740545439521,-500.0,0.00045413,120]
[354512775,1740545439530,-500.0,0.00045413,120]
[354512776,1740545439540,-500.0,0.00045413,120]
[354512777,1740545439549,-1930.63,0.00045413,120]
[354512778,1740545439559,-3056.87,0.00045413,120]
[354512779,1740545439666,-2023.7,0.00045413,120]
[354512780,1740545439675,-500.0,0.00045413,120]
[354512781,1740545439685,-500.0,0.00045413,120]
[354512782,1740545439694,-503.59292471,0.00045413,120]
[354512783,1740545439703,-504.31473145,0.00045413,120]
[354512784,1740545439713,-1399.86,0.00045413,120]
[354512785,1740545439722,-812.2,0.00045413,120]
[354512786,1740545439730,-1818.25,0.00045413,120]
[354512787,1740545439739,-500.0,0.00045413,120]
[354512788,1740545439747,-500.87929708,0.00045413,120]
[354512789,1740545439756,-500.0,0.00045413,120]
[354512790,1740545439765,-500.0,0.00045413,120]
[354512791,1740545439774,-500.0,0.00045413,120]
[354512792,1740545439784,-540.04447841,0.00045413,120]
[354512793,1740545439793,-500.0,0.00045413,120]
[354512794,1740545439802,-500.0,0.00045413,120]
[354512795,1740545439811,-500.0,0.00045413,120]
[354512796,1740545439820,-2007.89,0.00045413,120]
[354512797,1740545439830,-500.0,0.00045413,120]
[354512798,1740545439839,-3494.8,0.00045413,120]
[354512799,1740545439849,-501.76188873,0.00045413,120]
[354512800,1740545439858,-500.0,0.00045413,120]
[354512801,1740545439868,-500.0,0.00045413,120]
[354512802,1740545439877,-500.0,0.00045413,120]
[354512803,1740545439889,-500.0,0.00045413,120]
[354512804,1740545439899,-662.9,0.00045413,120]
[354512805,1740545439907,-500.0,0.00045413,120]
[354512806,1740545439917,-2865.32,0.00045413,120]
[354512807,1740545439927,-735.22,0.00045413,120]
[354512808,1740545439935,-756.25,0.00045413,120]
[354512809,1740545439944,-500.0,0.00045413,120]
[354512810,1740545439953,-965.85,0.00045413,120]
[354512811,1740545439963,-944.55,0.00045413,120]
[354512812,1740545439972,-500.0,0.00045413,120]
[354512813,1740545439982,-500.0,0.00045413,120]
[354512814,1740545439991,-3710.78,0.00045413,120]
[354512815,1740545440000,-500.0,0.00045413,120]
[354512816,1740545440009,-500.0,0.00045413,7]
[354512817,1740545440019,-500.0,0.00045413,120]
[354512818,1740545440028,-500.0,0.00045413,120]
[354512819,1740545440037,-500.0,0.00045413,120]
[354512820,1740545440047,-500.0,0.00045413,120]
[354512821,1740545440056,-500.0,0.00045413,120]
[354512822,1740545440065,-809.07,0.00045413,120]
[354512823,1740545440074,-2004.92,0.00045413,120]
[354512824,1740545440083,-1602.06,0.00045413,120]
[354512825,1740545440093,-502.01287773,0.00045413,120]
[354512826,1740545440102,-500.0,0.00045413,120]
[354512827,1740545440111,-1644.31,0.00045413,120]
[354512828,1740545440121,-1112.18,0.00045413,120]
[354512829,1740545440130,-2459.71,0.00045413,120]
[354512830,1740545440139,-500.0,0.00045413,120]
[354512831,1740545440148,-1105.27,0.00045413,120]
[354512832,1740545440157,-1096.73,0.00045413,120]
[354512833,1740545440167,-2864.87,0.00045413,120]
[354512834,1740545440175,-502.77278146,0.00045413,120]
[354512835,1740545440184,-501.15017159,0.00045413,120]
[354512836,1740545440194,-700.64,0.00045413,60]
[354512837,1740545440203,-1190.31,0.00045413,120]
[354512838,1740545440213,-312.08940879,0.00045413,120]
[354512839,1740545440222,-506.77352249,0.00045413,120]
[354512840,1740545440232,-500.0,0.00045413,120]
[354512841,1740545440241,-533.48,0.00045413,120]
[354512842,1740545440251,-1295.7,0.00045413,120]
[354512843,1740545440261,-500.0,0.00045413,120]
[354512844,1740545440270,-505.0516194,0.00045413,120]
[354512845,1740545440279,-2861.7,0.00045413,120]
[354512846,1740545440289,-500.0,0.00045413,120]
[354512847,1740545440298,-943.82,0.00045413,120]
[354512848,1740545440307,-972.27,0.00045413,120]
[354512849,1740545440315,-527.87708637,0.00045413,120]
[354512850,1740545440326,-1128.35,0.00045413,120]
[354512851,1740545440335,-500.0,0.00045413,120]
[354512852,1740545440344,-2384.67,0.00045413,120]
[354512853,1740545440354,-978.13,0.00045413,120]
[354512854,1740545440363,-500.0,0.00045413,120]
[354512855,1740545440371,-509.14540993,0.00045413,120]
[354512856,1740545440381,-657.55,0.00045413,120]
[354512857,1740545440390,-500.0,0.00045413,120]
[354512858,1740545440399,-500.0,0.00045413,120]
[354512859,1740545440409,-1783.05,0.00045413,120]
[354512860,1740545440419,-500.0,0.00045413,120]
[354512861,1740545440431,-1706.69,0.00045413,120]
[354512862,1740545440441,-1972.72,0.00045413,120]
[354512863,1740545440452,-787.87,0.00045413,120]
[354512864,1740545440461,-498.08431349,0.00045413,120]
[354512865,1740545440471,-1647.98,0.00045413,120]
[354512866,1740545440480,-505.78624486,0.00045413,120]
[354512867,1740545440490,-3098.47,0.00045413,120]
[354512868,1740545440499,-500.0,0.00045413,120]
[354512869,1740545440509,-593.3,0.00045413,120]
[354512870,1740545440518,-489.79746368,0.00045413,120]
[354512871,1740545440527,-1556.84,0.00045413,120]
[354512872,1740545440537,-502.12269986,0.00045413,120]
[354512873,1740545440546,-500.0,0.00045413,120]
[354512874,1740545440559,-2066.51,0.00045413,120]
[354512875,1740545440568,-500.0,0.00045413,120]
[354512876,1740545440578,-500.0,0.00045413,120]
[354512877,1740545440587,-502.10564047,0.00045413,120]
[354512878,1740545440596,-2408.72,0.00045413,120]
[354512879,1740545440605,-1412.0,0.00045413,120]
[354512880,1740545440615,-504.21355843,0.00045413,120]
[354512881,1740545440624,-501.69670084,0.00045413,120]
[354512882,1740545440633,-502.42409432,0.00045413,120]
[354512883,1740545440642,-1794.9,0.00045413,120]
[354512884,1740545440652,-153.389105,0.00045413,14]
[354512885,1740545440662,-501.39520554,0.00045413,120]
[354512886,1740545440671,-1787.84,0.00045413,120]
[354512887,1740545440680,-503.01509959,0.00045413,120]
[354512888,1740545440690,-500.0,0.00045413,120]
[354512889,1740545440699,-500.0,0.00045413,120]
[354512890,1740545440711,-500.76471683,0.00045413,120]
[354512891,1740545440721,-501.91128034,0.00045413,120]
[354512892,1740545440731,-500.0,0.00045413,120]
[354512893,1740545440741,-904.93,0.00045413,120]
[354512894,1740545440750,-500.0,0.00045413,120]
[354512895,1740545440760,-1301.4,0.00045413,120]
[354512896,1740545440770,-706.85,0.00045413,120]
[354512897,1740545440779,-1349.05,0.00045413,120]
[354512898,1740545440788,-3485.96,0.00045413,120]
[354512899,1740545440798,-500.0,0.00045413,120]
[354512900,1740545440807,-500.0,0.00045413,120]
[354512901,1740545440817,-250.21120406,0.00045413,120]
[354512902,1740545440827,-500.0,0.00045413,120]
[354512903,1740545440837,-500.0,0.00045413,120]
[354512904,1740545440847,-501.460641,0.00045413,120]
[354512905,1740545440856,-1937.92,0.00045413,120]
[354512906,1740545440865,-2339.19,0.00045413,120]
[354512907,1740545440875,-502.0961325,0.00045413,120]
[354512908,1740545440884,-1806.73,0.00045413,120]
[354512909,1740545440899,-828.54,0.00045413,120]
[354512910,1740545440909,-501.93870832,0.00045413,120]
[354512911,1740545440919,-500.0,0.00045413,120]
[354512912,1740545440927,-500.0,0.00045413,120]
[354512913,1740545440938,-1400.12,0.00045413,120]
[354512914,1740545440948,-503.25724952,0.00045413,120]
[354512915,1740545440957,-2594.92,0.00045413,120]
[354512916,1740545440968,-500.0,0.00045413,120]
[354512917,1740545440978,-151.0,0.00045413,14]
[354512918,1740545440987,-151.0,0.00045413,14]
[354512919,1740545440997,-703.54,0.00045413,120]
[354512920,1740545441007,-500.0,0.00045413,120]
[354512921,1740545441016,-1265.9,0.00045413,120]
[354512922,1740545441026,-1804.4,0.00045413,120]
[354512923,1740545441036,-1287.41,0.00045413,120]
[354512924,1740545441046,-154.571206,0.00045413,14]
[354512925,1740545441055,-2329.71,0.00045413,120]
[354512926,1740545441066,-500.0,0.00045413,120]
[354512927,1740545441075,-749.86,0.00045413,120]
[354512928,1740545441084,-500.0,0.00045413,120]
[354512929,1740545441094,-700.47,0.00045413,120]
[354512930,1740545441105,-500.0,0.00045413,120]
[354512931,1740545441116,-2302.07,0.00045413,120]
[354512932,1740545441125,-500.0,0.00045413,120]
[354512933,1740545441136,-500.0,0.00045413,120]
[354512934,1740545441146,-1084.41,0.00045413,120]
[354512935,1740545441156,-504.69226305,0.00045413,120]
[354512936,1740545441166,-503.36305341,0.00045413,120]
[354512937,1740545441175,-501.24485269,0.00045413,120]
[354512938,1740545441185,-500.0,0.00045413,120]
[354512939,1740545441194,-500.0,0.00045413,120]
[354512940,1740545441203,-2277.44,0.00045413,120]
[354512941,1740545441213,-500.0,0.00045413,120]
[354512942,1740545441223,-1443.45,0.00045413,120]
[354512943,1740545441232,-151.0,0.00045413,14]
[354512944,1740545441241,-500.0,0.00045413,120]
[354512945,1740545441251,-500.0,0.00045413,120]
[354512946,1740545441261,-507.94,0.00045413,120]
[354512947,1740545441273,-500.0,0.00045413,120]
[354512948,1740545441282,-500.0,0.00045413,120]
[354512949,1740545441291,-1333.98,0.00045413,120]
[354512950,1740545441300,-1476.8,0.00045413,120]
[354512951,1740545441309,-500.0,0.00045413,120]
[354512952,1740545441318,-273.62347276,0.00045413,120]
[354512953,1740545441328,-500.0,0.00045413,120]
[354512954,1740545441337,-501.12476208,0.00045413,120]
[354512955,1740545441346,-607.8,0.00045413,120]
[354512956,1740545441355,-151.0,0.00045413,14]
[354512957,1740545441364,-663.81,0.00045413,120]
[354512958,1740545441373,-500.0,0.00045413,120]
[354512959,1740545441382,-937.52,0.00045413,120]
[354512960,1740545441391,-1782.19,0.00045413,120]
[354512961,1740545441400,-158.211958,0.00045413,14]
[354512962,1740545441410,-508.57377218,0.00045413,120]
[354512963,1740545441419,-501.89299404,0.00045413,120]
[354512964,1740545441428,-541.35,0.00045413,120]
[354512965,1740545441437,-2069.36,0.00045413,120]
[354512966,1740545441446,-151.0,0.00045413,14]
[354512967,1740545441457,-151.0,0.00045413,14]
[354512968,1740545441466,-1014.83,0.00045413,120]
[354512969,1740545441475,-500.0,0.00045413,120]
[354512970,1740545441484,-1608.91,0.00045413,120]
[354512971,1740545441495,-584.69,0.00045413,120]
[354512972,1740545441504,-500.0,0.00045413,120]
[354512973,1740545441513,-701.73,0.00045413,120]
[354512974,1740545441522,-1794.65,0.00045413,120]
[354512975,1740545441531,-1004.93,0.00045413,120]
[354512976,1740545441540,-1623.34,0.00045413,120]
[354512977,1740545441550,-501.98222404,0.00045413,120]
[354512978,1740545441558,-715.2,0.00045413,120]
[354512979,1740545441568,-501.16942935,0.00045413,30]
[354512980,1740545441577,-770.6,0.00045413,120]
[354512981,1740545441586,-151.0,0.00045413,14]
[354512982,1740545441595,-151.0,0.00045413,14]
[354512983,1740545441604,-151.0,0.00045413,14]
[354512984,1740545441613,-151.0,0.00045413,14]
[354512985,1740545441622,-151.0,0.00045413,14]
[354512986,1740545441631,-503.68828431,0.00045413,120]
[354512987,1740545441640,-151.0,0.00045413,14]
[354512988,1740545441649,-500.0,0.00045413,120]
[354512989,1740545441659,-2381.2,0.00045413,120]
[354512990,1740545441667,-500.0,0.00045413,120]
[354512991,1740545441676,-600.99920484,0.00045413,120]
[354512992,1740545441684,-504.2110121,0.00045413,120]
[354512993,1740545441694,-510.33017759,0.00045413,120]
[354512994,1740545441703,-500.0,0.00045413,120]
[354512995,1740545441712,-501.99750019,0.00045413,120]
[354512996,1740545441721,-3218.67,0.00045413,120]
[354512997,1740545441731,-500.0,0.00045413,120]
[354512998,1740545441740,-1213.2,0.00045413,120]
[354512999,1740545441754,-3535.96,0.00045413,120]
[354513000,1740545441764,-513.23781949,0.00045413,90]
[354513001,1740545441783,-1365.77,0.00045413,120]
[354513002,1740545441793,-151.0,0.00045413,14]
[354513003,1740545441802,-151.0,0.00045413,14]
[354513004,1740545441811,-151.0,0.00045413,14]
[354513005,1740545441820,-1094.81,0.00045413,120]
[354513006,1740545441829,-613.96,0.00045413,120]
[354513007,1740545441838,-1736.75,0.00045413,120]
[354513008,1740545441848,-151.0,0.00045413,14]
[354513009,1740545441858,-151.0,0.00045413,14]
[354513010,1740545441867,-151.0,0.00045413,14]
[354513011,1740545441875,-748.45548856,0.00045413,120]
[354513127,1740545443726,-604.21,0.00042429,2]
[354513129,1740545443735,-552.09,0.00043136,2]
[354513156,1740545444247,-558.91,0.00043136,2]
[354513157,1740545444257,-604.21,0.00044693,2]
[354513158,1740545444267,-500.0,0.0004541,120]
[354513159,1740545444277,-500.0,0.0004541,7]
[354513160,1740545444288,-2140.67,0.0004541,120]
[354513161,1740545444298,-545.6723261,0.00045411,120]
[354513162,1740545444308,-2426.88,0.00045412,120]
[354513163,1740545444318,-218.68048566,0.00045412,120]
[354513164,1740545444328,-500.0,0.00045412,120]
[354513165,1740545444337,-500.0,0.00045412,120]
[354513166,1740545444347,-500.0,0.00045412,120]
[354513167,1740545444357,-500.0,0.00045412,120]
[354513168,1740545444366,-500.0,0.00045412,120]
[354513169,1740545444376,-70.88451144,0.00045413,120]
[354513170,1740545444385,-500.0,0.00045413,120]
[354513171,1740545444395,-500.0,0.00045413,120]
[354513172,1740545444405,-1191.64,0.00045413,120]
[354513173,1740545444415,-1838.84,0.00045413,120]
[354513174,1740545444425,-254.640619,0.00045413,14]
[354513175,1740545444435,-254.640619,0.00045413,14]
[354513176,1740545444445,-254.640619,0.00045413,14]
[354513177,1740545444455,-254.640619,0.00045413,14]
[354513178,1740545444465,-254.640619,0.00045413,14]
[354513179,1740545444475,-254.640619,0.00045413,14]
[354513180,1740545444485,-1998.26,0.00045413,120]
[354513181,1740545444495,-509.9340998,0.00045413,120]
[354513182,1740545444505,-500.0,0.00045413,120]
[354513183,1740545444514,-2066.74,0.00045413,120]
[354513184,1740545444525,-500.0,0.00045413,120]
[354513185,1740545444535,-500.0,0.00045413,120]
[354513186,1740545444545,-1056.0,0.00045413,120]
[354513187,1740545444555,-502.57296533,0.00045413,120]
[354513188,1740545444565,-500.0,0.00045413,120]
[354513189,1740545444574,-2081.86,0.00045413,120]
[354513190,1740545444586,-3154.05,0.00045413,120]
[354513191,1740545444595,-504.5180102,0.00045413,120]
[354513192,1740545444605,-166.519535,0.00045413,14]
[354513193,1740545444615,-166.519535,0.00045413,14]
[354513194,1740545444624,-521.64,0.00045413,120]
[354513195,1740545444634,-3583.88,0.00045413,120]
[354513196,1740545444644,-166.519535,0.00045413,14]
[354513197,1740545444654,-459.14529396,0.00045413,120]
[354513198,1740545444663,-166.519535,0.00045413,14]
[354513199,1740545444673,-505.87798299,0.00045413,120]
[354513200,1740545444683,-3290.37,0.00045413,120]
[354513201,1740545444693,-380.22281529,0.00045413,120]
[354513202,1740545444702,-500.0,0.00045413,7]
[354513203,1740545444712,-242.74546634,0.00045413,120]
[354513204,1740545444721,-503.47157898,0.00045413,120]
[354513205,1740545444731,-500.0,0.00045413,120]
[354513206,1740545444741,-505.98065191,0.00045413,120]
[354513207,1740545444751,-1029.78,0.00045413,120]
[354513208,1740545444761,-500.0,0.00045413,120]
[354513209,1740545444770,-1079.36,0.00045413,120]
[354513210,1740545444780,-505.27147661,0.00045413,120]
[354513211,1740545444790,-3570.47,0.00045413,120]
[354513212,1740545444799,-1450.61,0.00045413,120]
[354513213,1740545444809,-151.0,0.00045413,14]
[354513214,1740545444819,-500.0,0.00045413,120]
[354513215,1740545444829,-503.65249308,0.00045413,120]
[354513216,1740545444839,-536.84,0.00045413,120]
[354513217,1740545444849,-500.0,0.00045413,120]
[354513218,1740545444859,-150.0,0.00045427,2]
[354513219,1740545444869,-500.0,0.00045473,2]
[354513220,1740545444879,-150.0,0.00045475,2]
[354513221,1740545444892,-372.04482331,0.00045488,15]
[354513222,1740545444902,-2853.07599585,0.00045495,15]
[354513223,1740545444912,-150.0,0.00045518,2]
[354513224,1740545444922,-150.0,0.00045532,2]
[354513225,1740545444933,-372.04482331,0.0004558,15]
[354513226,1740545444944,-2853.07599585,0.00045586,15]
[354513227,1740545444954,-1600.0,0.000456,16]
[354513231,1740545445293,-200.0,0.0004563,30]
[354513233,1740545445303,-150.0,0.00045632,2]
[354513235,1740545445313,-275.7214295,0.00045643,4]
[354513237,1740545445322,-150.0,0.0004566,2]
[354513239,1740545445332,-372.04482331,0.00045672,15]
[354513241,1740545445342,-500.0,0.00045675,90]
[354513243,1740545445352,-2101.74,0.00045676,120]
[354513245,1740545445361,-151.0,0.00045676,14]
[354513247,1740545445371,-151.0,0.00045676,14]
[354513249,1740545445380,-270.300299,0.00045676,14]
[354513251,1740545445390,-300.0,0.00045676,30]
[354513253,1740545445399,-151.0,0.00045677,14]
[354513254,1740545445409,-2853.07599585,0.00045677,15]
[354513256,1740545445418,-11207.18,0.00045684,120]
[354513257,1740545445428,-6437.93,0.00045684,120]
[354513258,1740545445437,-4459.21,0.00045684,120]
[354513259,1740545445447,-4352.17,0.00045684,120]
[354513260,1740545445457,-4620.47,0.00045684,120]
[354513261,1740545445466,-3277.66,0.00045684,120]
[354513262,1740545445475,-7637.06,0.00045684,120]
[354513263,1740545445484,-6834.67,0.00045684,120]
[354513264,1740545445494,-654.65,0.00045684,120]
[354513265,1740545445503,-1057.71,0.00045684,120]
[354513266,1740545445513,-6165.64,0.00045684,120]
[354513267,1740545445522,-3205.88,0.00045684,120]
[354513268,1740545445531,-3174.28,0.00045684,120]
[354513269,1740545445541,-664.0,0.00045684,120]
[354513270,1740545445550,-6206.61,0.00045684,120]
[354513271,1740545445560,-1807.45,0.00045684,120]
[354513272,1740545445569,-5994.11,0.00045684,120]
[354513273,1740545445578,-4388.53,0.00045684,120]
[354513274,1740545445588,-3481.45,0.00045684,120]
[354513275,1740545445598,-2775.37,0.00045684,120]
[354513276,1740545445607,-3650.14,0.00045684,120]
[354513277,1740545445617,-500.0,0.00045684,120]
[354513278,1740545445627,-5935.86,0.00045684,120]
[354513279,1740545445637,-7132.6,0.00045684,120]
[354513280,1740545445646,-4390.93,0.00045684,120]
[354513281,1740545445656,-4072.81,0.00045684,120]
[354513282,1740545445666,-2802.96,0.00045684,120]
[354513283,1740545445675,-1701.01,0.00045684,120]
[354513284,1740545445685,-6388.69,0.00045684,120]
[354513285,1740545445694,-1525.54,0.00045684,120]
[354513286,1740545445704,-3535.94,0.00045684,120]
[354513287,1740545445713,-500.0,0.00045684,120]
[354513288,1740545445723,-500.0,0.00045684,7]
[354513289,1740545445732,-2140.67,0.00045684,120]
[354513290,1740545445742,-163.55119776,0.00045685,120]
[354513291,1740545445752,-500.0,0.00045685,120]
[354513292,1740545445761,-500.0,0.00045685,120]
[354513293,1740545445771,-500.0,0.00045685,120]
[354513294,1740545445781,-813.77,0.00045685,120]
[354513295,1740545445790,-500.0,0.00045685,120]
[354513296,1740545445801,-500.0,0.00045685,120]
[354513297,1740545445810,-500.0,0.00045685,120]
[354513298,1740545445820,-500.0,0.00045685,120]
[354513299,1740545445830,-1330.9,0.00045685,120]
[354513300,1740545445839,-500.0,0.00045685,120]
[354513301,1740545445849,-1512.04,0.00045685,120]
[354513302,1740545445858,-500.0,0.00045685,120]
[354513304,1740545445868,-517.81,0.00045685,120]
[354513306,1740545445878,-1109.57,0.00045685,120]
[354513308,1740545445889,-582.18,0.00045685,120]
[354513310,1740545445901,-500.0,0.00045685,120]
[354513312,1740545445910,-500.0,0.00045685,120]
[354513314,1740545445920,-500.0,0.00045685,120]
[354513316,1740545445929,-500.0,0.00045685,120]
[354513318,1740545445940,-1077.41726923,0.00045685,2]
[354513320,1740545445949,-500.0,0.00045685,120]
[354513322,1740545445959,-943.79,0.00045685,120]
[354513324,1740545445969,-829.57,0.00045685,120]
[354513326,1740545445978,-1541.29,0.00045685,120]
[354513328,1740545445987,-500.0,0.00045685,120]
[354513330,1740545445996,-840.37,0.00045685,120]
[354513332,1740545446006,-500.0,0.00045685,120]
[354513334,1740545446015,-500.0,0.00045685,120]
[354513336,1740545446024,-1131.29,0.00045685,120]
[354513338,1740545446033,-500.0,0.00045685,120]
[354513340,1740545446043,-1018.26,0.00045685,120]
[354513342,1740545446052,-725.4,0.00045685,120]
[354513344,1740545446061,-500.0,0.00045685,120]
[354513346,1740545446071,-500.0,0.00045685,120]
[354513348,1740545446080,-500.0,0.00045685,120]
[354513350,1740545446090,-500.0,0.00045685,120]
[354513352,1740545446099,-500.0,0.00045685,120]
[354513354,1740545446108,-500.0,0.00045685,120]
[354513356,1740545446118,-1522.32,0.00045685,120]
[354513358,1740545446127,-565.75,0.00045685,120]
[354513360,1740545446136,-500.0,0.00045685,120]
[354513362,1740545446145,-869.99,0.00045685,120]
[354513364,1740545446155,-893.43,0.00045685,120]
[354513366,1740545446163,-597.04,0.00045685,120]
[354513368,1740545446173,-500.0,0.00045685,120]
[354513370,1740545446182,-1615.94,0.00045685,120]
[354513372,1740545446192,-500.0,0.00045685,120]
[354513374,1740545446201,-500.0,0.00045685,120]
[354513376,1740545446210,-965.08,0.00045685,120]
[354513378,1740545446219,-636.78,0.00045685,120]
[354513380,1740545446229,-500.0,0.00045685,120]
[354513382,1740545446238,-500.0,0.00045685,120]
[354513384,1740545446247,-500.0,0.00045685,120]
[354513386,1740545446256,-500.0,0.00045685,120]
[354513388,1740545446265,-614.17,0.00045685,120]
[354513390,1740545446275,-500.0,0.00045685,90]
[354513392,1740545446284,-929.1,0.00045685,120]
[354513394,1740545446293,-885.79,0.00045685,120]
[354513396,1740545446303,-1311.98,0.00045685,120]
[354513398,1740545446312,-938.78,0.00045685,120]
[354513400,1740545446321,-500.0,0.00045685,120]
[354513402,1740545446330,-819.68,0.00045685,120]
[354513404,1740545446339,-1697.72,0.00045685,120]
[354513406,1740545446349,-500.0,0.00045685,120]
[354513408,1740545446358,-500.0,0.00045685,120]
[354513410,1740545446367,-1609.61,0.00045685,120]
[354513412,1740545446376,-500.0,0.00045685,120]
[354513414,1740545446385,-2001.69,0.00045685,120]
[354513416,1740545446395,-500.0,0.00045685,120]
[354513418,1740545446404,-500.0,0.00045685,120]
[354513420,1740545446414,-500.0,0.00045685,120]
[354513422,1740545446423,-200.0,0.00045685,7]
[354513424,1740545446432,-500.0,0.00045685,120]
[354513426,1740545446441,-500.0,0.00045685,120]
[354513428,1740545446450,-500.0,0.00045685,120]
[354513430,1740545446460,-814.32,0.00045685,120]
[354513432,1740545446469,-1061.45,0.00045685,120]
[354513434,1740545446478,-500.0,0.00045685,120]
[354513436,1740545446488,-500.0,0.00045685,120]
[354513438,1740545446497,-1045.95,0.00045685,120]
[354513440,1740545446506,-993.95,0.00045685,120]
[354513442,1740545446515,-675.95,0.00045685,120]
[354513444,1740545446525,-633.2,0.00045685,120]
[354513446,1740545446534,-500.0,0.00045685,120]
[354513448,1740545446543,-502.98501303,0.00045685,120]
[354513450,1740545446552,-500.0,0.00045685,120]
[354513452,1740545446562,-1166.32,0.00045685,120]
[354513454,1740545446572,-540.1,0.00045685,120]
[354513456,1740545446581,-326.87567702,0.00045686,71]
[354513458,1740545446591,-191824.70996082,0.00045686,50]
[354513460,1740545446601,-300.0,0.00045686,30]
[354513462,1740545446610,-500.0,0.00045686,120]
[354513464,1740545446620,-3364.73,0.00045686,120]
[354513466,1740545446629,-500.0,0.00045686,120]
[354513468,1740545446639,-666.38,0.00045686,120]
[354513470,1740545446648,-992.34,0.00045686,120]
[354513472,1740545446658,-979.0,0.00045686,120]
[354513474,1740545446667,-500.0,0.00045686,120]